bitfinex/quotes_ETHUSD_20251031
["timestamp","ask_amount","ask_price","bid_price","bid_amount"]
[1761909309078,5.30724715,3837.5,3837.4,0.002]
[1761909309246,35.30724715,3837.5,3837.4,0.002]
[1761909310184,35.30724715,3837.5,3837.1,0.01]
[1761909310185,2.22975084,3837.2,3837.1,1e-08]
[1761909310351,34.3124127,3837.2,3837.1,1e-08]
[1761909310668,22.61179236,3837.2,3837.1,1e-08]
[1761909310847,21.64116936,3837.2,3837.1,1e-08]
[1761909311043,22.11016936,3837.2,3837.1,1e-08]
[1761909311280,22.58566936,3837.2,3837.1,1e-08]
[1761909311477,20.63300236,3837.2,3837.1,1e-08]
[1761909311780,15.24941336,3837.2,3837.1,1e-08]
[1761909312371,15.72491336,3837.2,3837.1,1e-08]
[1761909313382,16.34034961,3837.2,3837.1,1e-08]
[1761909313689,16.66425677,3837.2,3837.1,1e-08]
[1761909314589,17.06976077,3837.2,3837.1,1e-08]
[1761909314959,40.41262877,3837.2,3837.1,1e-08]
[1761909316090,40.08872161,3837.2,3837.1,1e-08]
[1761909316795,40.41262877,3837.2,3837.1,1e-08]
[1761909317294,30.65166977,3837.2,3837.1,1e-08]
[1761909317475,30.32776261,3837.2,3837.1,1e-08]
[1761909318196,32.38789361,3837.2,3837.1,1e-08]
[1761909319102,35.32690961,3837.2,3837.1,1e-08]
[1761909319595,34.27822761,3837.2,3837.1,1e-08]
[1761909319964,10.08872161,3837.2,3837.1,1e-08]
[1761909320154,17.01958561,3837.2,3837.1,1e-08]
[1761909320358,15.52512861,3837.2,3837.1,1e-08]
[1761909320896,16.00042861,3837.2,3837.1,1e-08]
[1761909321094,29.49893161,3837.2,3837.1,1e-08]
[1761909321306,6.166067,3837.2,3837.1,0.41350001]
[1761909321464,6.166067,3837.2,3837.1,0.56370001]
[1761909321465,1.82344684,3837.2,3837.1,0.56370001]
[1761909321663,1.84785818,3837.2,3837.1,0.97720001]
[1761909321869,1.84865818,3837.2,3837.1,0.97720001]
[1761909322098,1.82424684,3837.2,3837.1,0.97720001]
[1761909322267,1.84865818,3837.2,3837.1,0.97720001]
[1761909322473,1.82416685,3837.4,3837.1,0.97720001]
[1761909322672,0.1296,3837.2,3837.1,0.15020001]
[1761909323215,0.1296,3837.2,3837.1,0.97720001]
[1761909323870,1.82502312,3837.7,3837.1,0.97720001]
[1761909323871,0.02441134,3837.5,3837.1,0.97720001]
[1761909324072,0.02441134,3837.4,3837.2,0.4135]
[1761909324288,1.84942051,3837.7,3837.6,0.4135]
[1761909324677,1.84942051,3837.7,3837.6,1.2405]
[1761909325711,1.82424684,3837.2,3837.1,0.15020001]
[1761909326006,1.84865818,3837.2,3837.1,0.56370001]
[1761909326186,1.84865818,3837.2,3837.1,1.39070001]
[1761909326381,1.84865818,3837.2,3837.1,0.97720001]
[1761909327505,0.001,3837.7,3837.1,1.39070001]
[1761909327506,0.02441134,3837.3,3837.1,1.39070001]
[1761909327670,0.02441134,3837.3,3837.2,0.827]
[1761909328515,1.84861064,3837.3,3837.2,0.827]
[1761909329304,1.84861064,3837.3,3837.2,0.4135]
[1761909329510,1.82424684,3837.2,3837.1,0.41350001]
[1761909330018,1.82424684,3837.2,3837.1,0.41450001]
[1761909330718,2.28784684,3837.2,3837.1,0.41450001]
[1761909332018,1.82424684,3837.2,3837.1,0.41450001]
[1761909332717,1.85061626,3837.3,3837.1,1.24150001]
[1761909332885,1.85061626,3837.3,3837.2,0.4135]
[1761909333089,0.02641134,3837.3,3837.2,0.827]
[1761909333622,0.02641134,3837.3,3837.2,1.61039924]
[1761909333918,0.15601134,3837.3,3837.2,1.61039924]
[1761909334113,1.98021064,3837.3,3837.2,1.61039924]
[1761909334321,1.98021064,3837.3,3837.2,1.19689924]
[1761909334722,1.98021064,3837.3,3837.2,0.4135]
[1761909336329,1.97941064,3837.3,3837.2,0.4135]
[1761909336697,1.82424684,3837.2,3837.1,0.78439925]
[1761909338630,2.28784684,3837.2,3837.1,0.78439925]
[1761909338804,1.82424684,3837.2,3837.1,0.78439925]
[1761909339211,1.82424684,3837.2,3837.1,1.19789925]
[1761909339517,1.82424684,3837.2,3837.1,0.78439925]
[1761909339829,1.82424684,3837.2,3837.1,1.19789925]
[1761909341428,1.82424684,3837.2,3837.1,0.78439925]
[1761909342626,1.82424684,3837.2,3837.1,0.00100001]
[1761909342831,1.97944507,3837.3,3837.1,0.00100001]
[1761909343204,1.82424684,3837.2,3837.1,0.00100001]
[1761909343950,1.82424684,3837.2,3837.1,0.41450001]
[1761909344251,1.9794186,3837.3,3837.1,0.41450001]
[1761909344425,1.9794186,3837.3,3837.2,0.4135]
[1761909346349,0.15521134,3837.3,3837.2,0.4135]
[1761909346549,0.15521134,3837.3,3837.2,0.827]
[1761909349570,0.1316,3837.3,3837.2,0.827]
[1761909349859,0.002,3837.3,3837.2,0.827]
[1761909351273,0.02561134,3837.3,3837.2,0.827]
[1761909351953,0.002,3837.3,3837.2,0.827]
[1761909352189,0.02561134,3837.3,3837.2,0.827]
[1761909352654,0.002,3837.3,3837.2,0.827]
[1761909352987,0.02561134,3837.3,3837.2,0.827]
[1761909353159,0.002,3837.3,3837.2,0.827]
[1761909353365,0.02561134,3837.3,3837.2,0.827]
[1761909353561,0.002,3837.3,3837.2,0.827]
[1761909353986,0.002,3837.3,3837.2,1.10539377]
[1761909355590,0.002,3837.3,3837.2,0.827]
[1761909359785,0.002,3837.3,3837.2,0.9566]
[1761909361282,0.0012,3837.3,3837.2,0.9566]
[1761909364131,0.0012,3837.3,3837.2,2.8069075]
[1761909364706,0.0012,3837.3,3837.2,4.2065875]
[1761909365018,0.0012,3837.3,3837.2,5.33539772]
[1761909365216,0.0012,3837.3,3837.2,4.18052684]
[1761909366310,0.0012,3837.3,3837.2,2.35628]
[1761909366513,0.0012,3837.3,3837.2,0.9566]
[1761909367926,0.0012,3837.3,3837.2,0.5431]
[1761909368538,0.0012,3837.3,3837.2,0.4135]
[1761909371439,0.0012,3837.3,3837.1,0.45860001]
[1761909371440,0.51691134,3837.3,3837.1,0.00100001]
[1761909371598,2.25734684,3837.2,3837.1,0.00100001]
[1761909372118,2.71494684,3837.2,3837.1,0.00100001]
[1761909372630,2.73855818,3837.2,3837.1,0.00100001]
[1761909377341,2.73855818,3837.2,3837.0,0.002]
[1761909377342,34.57857838,3837.1,3837.0,1e-08]
[1761909379239,34.90248554,3837.1,3837.0,1e-08]
[1761909380910,34.57857838,3837.1,3837.0,1e-08]
[1761909382106,37.77567513,3837.1,3837.0,1e-08]
[1761909382325,36.53817513,3837.1,3837.0,1e-08]
[1761909386623,36.53737513,3837.1,3837.0,1e-08]
[1761909387333,39.80272929,3837.1,3837.0,1e-08]
[1761909387541,40.11760821,3837.1,3837.0,1e-08]
[1761909387718,40.11760821,3837.1,3836.8,0.001]
[1761909387719,32.22989348,3836.9,3836.8,0.001]
[1761909387919,34.89445956,3836.9,3836.8,0.001]
[1761909388113,35.39125956,3836.9,3836.8,0.001]
[1761909388646,35.49576136,3836.9,3836.8,0.001]
[1761909389050,35.18088244,3836.9,3836.8,0.001]
[1761909389653,34.98997346,3836.9,3836.8,0.001]
[1761909390232,46.26101721,3836.9,3836.8,0.001]
[1761909390567,34.27174424,3835.7,3835.6,1e-08]
[1761909390766,39.17278799,3835.7,3835.6,1e-08]
[1761909391064,30.51398899,3835.7,3835.6,1e-08]
[1761909391264,31.01078899,3835.7,3835.6,1e-08]
[1761909393355,18.61434099,3835.7,3835.6,1e-08]
[1761909394268,19.02329841,3835.7,3835.6,1e-08]
[1761909395451,3.63359766,3835.7,3835.6,0.41350001]
[1761909395635,3.657209,3835.7,3835.6,0.41350001]
[1761909395834,3.657209,3835.7,3835.6,1e-08]
[1761909396049,3.657209,3835.7,3835.6,0.41350001]
[1761909396270,4.108509,3835.7,3835.6,1e-08]
[1761909396581,4.605309,3835.7,3835.6,1e-08]
[1761909396874,3.657209,3835.7,3835.6,1e-08]
[1761909398470,8.55825275,3835.7,3835.6,0.41350001]
[1761909398649,8.53464141,3835.7,3835.6,0.41350001]
[1761909398849,8.98594141,3835.7,3835.6,1e-08]
[1761909399056,13.03966441,3835.7,3835.6,1e-08]
[1761909399257,12.69230341,3835.7,3835.6,1e-08]
[1761909399440,13.18910341,3835.7,3835.6,1e-08]
[1761909399641,11.56646941,3835.7,3835.6,1e-08]
[1761909400962,11.97197341,3835.7,3835.6,1e-08]
[1761909401642,30.16066241,3835.7,3835.6,0.00100001]
[1761909401876,22.72097541,3835.7,3835.6,0.00100001]
[1761909402567,31.77032241,3835.7,3835.6,0.00100001]
[1761909403672,39.89024541,3835.7,3835.6,0.00100001]
[1761909404257,28.70504541,3835.7,3835.6,0.00100001]
[1761909404598,29.22764241,3835.7,3835.6,0.00100001]
[1761909405598,39.83256341,3835.7,3835.6,0.00100001]
[1761909405771,35.62764241,3835.7,3835.6,0.00100001]
[1761909405956,25.88692641,3835.7,3835.6,0.00100001]
[1761909406153,22.48692641,3835.7,3835.6,0.00100001]
[1761909406357,18.55187241,3835.7,3835.6,0.00100001]
[1761909406586,11.66460141,3835.7,3835.6,0.00100001]
[1761909406794,12.11590141,3835.7,3835.6,0.00100001]
[1761909406976,11.71039741,3835.7,3835.6,0.00100001]
[1761909407164,11.66460141,3835.7,3835.6,0.00100001]
[1761909407486,11.25909741,3835.7,3835.6,0.00100001]
[1761909407687,8.53664141,3835.7,3835.6,0.41450001]
[1761909408191,8.12768399,3835.7,3835.6,0.00100001]
[1761909408360,8.57898399,3835.7,3835.6,0.00100001]
[1761909408894,8.12768399,3835.7,3835.6,0.41450001]
[1761909409387,3.22664024,3835.7,3835.6,0.41450001]
[1761909409569,8.15129533,3835.7,3835.6,0.41450001]
[1761909409773,8.12768399,3835.7,3835.6,0.41450001]
[1761909411499,8.53660859,3835.7,3835.6,0.41450001]
[1761909411811,8.53580859,3835.7,3835.6,0.41450001]
[1761909412009,8.53580859,3835.7,3835.6,0.00100001]
[1761909413914,8.53580859,3835.7,3835.6,0.41450001]
[1761909416088,3.63476484,3835.7,3835.6,0.41450001]
[1761909416290,3.65837618,3835.7,3835.6,0.82800001]
[1761909416689,3.65837618,3835.7,3835.6,0.41450001]
[1761909417086,2.25869618,3835.7,3835.6,0.41450001]
[1761909417314,2.25869618,3835.7,3835.6,0.82800001]
[1761909417820,0.002,3835.7,3835.6,0.82800001]
[1761909418934,0.002,3835.7,3835.6,0.82800001]
[1761909420314,0.002,3835.7,3835.6,0.95760001]
[1761909420519,0.002,3835.7,3835.6,1.75204921]
[1761909420718,0.002,3835.7,3835.6,0.98367155]
[1761909421235,0.002,3835.7,3835.6,2.80867937]
[1761909421548,0.002,3835.7,3835.6,4.20835937]
[1761909421838,0.002,3835.7,3835.6,4.07875937]
[1761909424838,0.002,3835.7,3835.6,4.48426337]
[1761909425010,0.002,3835.7,3835.6,5.6157474]
[1761909425211,0.002,3835.7,3835.6,5.58967586]
[1761909426763,0.002,3835.7,3835.6,5.18417186]
[1761909427959,0.002,3835.7,3835.6,5.2102434]
[1761909428355,0.002,3835.7,3835.6,5.18417186]
[1761909429355,0.002,3835.7,3835.6,5.2102434]
[1761909429859,0.002,3835.7,3835.6,5.18417186]
[1761909431638,0.002,3835.7,3835.6,5.3398434]
[1761909431834,0.002,3835.7,3835.6,5.31377186]
[1761909432170,0.002,3835.7,3835.6,9.80131561]
[1761909432476,0.002,3835.7,3835.6,10.21481561]
[1761909435488,0.002,3835.7,3835.6,10.31927157]
[1761909437158,0.0012,3835.7,3835.6,10.31927157]
[1761909437379,0.0012,3835.7,3835.6,5.41822782]
[1761909442684,0.0012,3835.7,3835.6,5.31377186]
[1761909445971,0.0012,3835.7,3835.6,4.90027186]
[1761909446578,0.0012,3835.7,3835.6,4.48677186]
[1761909446780,0.0012,3835.7,3835.6,3.35528783]
[1761909446966,0.0012,3835.7,3835.6,3.76878783]
[1761909451927,0.0012,3835.7,3835.6,3.79485937]
[1761909452134,0.0012,3835.7,3835.6,4.20835937]
[1761909452599,0.0012,3835.7,3835.6,4.18228783]
[1761909452800,0.0012,3835.7,3835.6,4.92088322]
[1761909456964,0.4936,3835.7,3835.6,1.53028001]
[1761909457123,0.9812,3835.7,3835.6,0.00100001]
[1761909462268,0.9804,3835.7,3835.6,0.00100001]
[1761909465985,0.4928,3835.7,3835.6,0.00100001]
[1761909466570,0.9804,3835.7,3835.6,0.00100001]
[1761909466956,0.9804,3835.7,3835.6,0.13060001]
[1761909467686,2.80536024,3835.7,3835.6,0.00100001]
[1761909472894,0.9804,3835.7,3835.6,0.00100001]
[1761909473305,1.00401134,3835.7,3835.6,0.00100001]
[1761909473898,2.82897158,3835.7,3835.6,0.00100001]
[1761909480212,1.00401134,3835.7,3835.6,0.00100001]
[1761909480710,2.82897158,3835.7,3835.6,0.00100001]
[1761909483812,28.97531957,3835.7,3835.6,0.00100001]
[1761909484012,26.95170823,3835.7,3835.6,0.00100001]
[1761909484210,19.30721223,3835.7,3835.6,0.00100001]
[1761909484919,32.37161023,3835.7,3835.6,0.00100001]
[1761909485090,32.22876523,3835.7,3835.6,0.00100001]
[1761909485283,32.33328669,3835.7,3835.6,0.00100001]
[1761909485916,40.03602469,3835.7,3835.6,0.00100001]
[1761909486091,26.37019469,3835.7,3835.6,0.00100001]
[1761909486292,24.21372569,3835.7,3835.6,0.00100001]
[1761909486934,36.23681669,3835.7,3835.6,0.00100001]
[1761909487336,36.23601669,3835.7,3835.6,0.00100001]
[1761909487736,36.55992385,3835.7,3835.6,0.00100001]
[1761909487900,10.96074027,3835.7,3835.6,0.00100001]
[1761909488106,40.96074027,3835.7,3835.6,0.00100001]
[1761909488508,40.96274027,3835.7,3835.6,0.00100001]
[1761909489925,10.96274027,3835.7,3835.6,0.00100001]
[1761909490130,40.96274027,3835.7,3835.6,0.00100001]
[1761909490349,27.37219216,3835.2,3835.1,1e-08]
[1761909490603,34.01953615,3835.2,3835.1,1e-08]
[1761909490807,34.51443615,3835.2,3835.1,1e-08]
[1761909491015,4.6203252,3835.2,3835.1,1e-08]
[1761909491341,9.89573454,3835.2,3835.1,1e-08]
[1761909491541,9.8721232,3835.2,3835.1,1e-08]
[1761909491842,4.11027816,3835.2,3835.1,1e-08]
[1761909492029,4.1338895,3835.2,3835.1,1e-08]
[1761909492872,1.84880757,3835.3,3835.1,1e-08]
[1761909493057,2.3455095,3835.2,3835.1,1e-08]
[1761909493560,2.8404095,3835.2,3835.1,1e-08]
[1761909494514,0.02361134,3835.3,3835.1,0.41390001]
[1761909495747,0.02361134,3835.5,3835.2,0.5273]
[1761909495938,0.002,3835.7,3835.3,0.4139]
[1761909496133,1.82696068,3835.7,3835.4,0.4139]
[1761909496449,0.02361134,3835.6,3835.4,0.4139]
[1761909496628,1.84861937,3835.6,3835.4,0.4139]
[1761909496812,0.02361134,3835.6,3835.4,0.4139]
[1761909497210,0.02561134,3835.7,3835.4,0.4139]
[1761909497415,1.82501721,3835.6,3835.4,0.4139]
[1761909497642,0.02361134,3835.5,3835.4,0.4139]
[1761909497843,0.02361134,3835.5,3835.2,0.1134]
[1761909497844,1.84866674,3835.5,3835.2,0.1134]
[1761909498723,1.85057703,3835.7,3835.2,0.1134]
[1761909498927,1.82505985,3835.5,3835.2,0.1134]
[1761909499148,4.90419319,3835.6,3835.2,0.1134]
[1761909499325,4.90419319,3835.6,3835.1,1e-08]
[1761909499326,1.82519816,3835.2,3835.1,1e-08]
[1761909499656,2.7532095,3835.2,3835.1,1e-08]
[1761909500571,11.3452175,3835.2,3835.1,1e-08]
[1761909500775,11.32160616,3835.2,3835.1,1e-08]
[1761909505181,23.24863516,3835.2,3835.1,0.00100001]
[1761909505407,23.25063516,3835.2,3835.1,0.00100001]
[1761909505681,23.65613916,3835.2,3835.1,0.00100001]
[1761909506178,4.53678216,3835.2,3835.1,0.00100001]
[1761909506380,34.83493869,3835.2,3835.1,0.00100001]
[1761909506548,35.13523451,3835.2,3835.1,0.00100001]
[1761909506749,35.23977919,3835.2,3835.1,0.00100001]
[1761909507378,39.86942719,3835.2,3835.1,0.00100001]
[1761909507678,19.09771984,3835.2,3835.1,0.00100001]
[1761909507854,24.00191303,3835.2,3835.1,0.00100001]
[1761909508365,28.11255303,3835.2,3835.1,0.00100001]
[1761909508677,19.87033103,3835.2,3835.1,0.00100001]
[1761909508848,13.12231503,3835.2,3835.1,0.00100001]
[1761909509187,12.71879103,3835.2,3835.1,0.00100001]
[1761909509393,12.40723103,3835.2,3835.1,0.00100001]
[1761909509565,12.45025603,3835.2,3835.1,0.00100001]
[1761909510495,27.43404403,3835.2,3835.1,0.00100001]
[1761909510691,27.04032203,3835.2,3835.1,0.00100001]
[1761909510995,17.92987003,3835.2,3835.1,0.00100001]
[1761909511181,12.42330835,3835.2,3835.1,0.00100001]
[1761909511385,3.65207816,3835.2,3835.1,0.00100001]
[1761909511689,3.65207816,3835.2,3835.1,0.41490001]
[1761909511690,1.8508095,3835.2,3835.1,0.41490001]
[1761909512283,2.7908095,3835.2,3835.1,0.00100001]
[1761909512597,7.69420269,3835.2,3835.1,0.00100001]
[1761909512912,7.67059135,3835.2,3835.1,0.00100001]
[1761909513093,24.25030435,3835.2,3835.1,0.00100001]
[1761909513295,6.73059135,3835.2,3835.1,0.00100001]
[1761909513688,1.82639816,3835.2,3835.1,0.41490001]
[1761909513894,1.8500095,3835.2,3835.1,0.41490001]
[1761909514800,1.82639816,3835.2,3835.1,0.41490001]
[1761909515005,2.28419816,3835.2,3835.1,0.00100001]
[1761909515200,6.73059135,3835.2,3835.1,0.41490001]
[1761909515494,6.73059135,3835.2,3835.1,0.52830001]
[1761909515495,0.002,3835.2,3835.1,0.52830001]
[1761909515695,0.1316,3835.2,3835.1,0.94220001]
[1761909516174,1.95679816,3835.2,3835.1,0.11440001]
[1761909516374,2.41459816,3835.2,3835.1,0.00100001]
[1761909516578,1.95679816,3835.2,3835.1,0.00100001]
[1761909518019,1.82719816,3835.2,3835.1,0.00100001]
[1761909519682,1.82719816,3835.2,3835.1,0.41490001]
[1761909520117,1.82719816,3835.2,3835.1,0.52830001]
[1761909520491,0.002,3835.2,3835.1,0.94220001]
[1761909520687,1.82719816,3835.2,3835.1,0.52830001]
[1761909521319,1.82719816,3835.2,3835.1,0.94220001]
[1761909521320,0.002,3835.2,3835.1,0.94220001]
[1761909521507,1.82719816,3835.2,3835.1,0.94220001]
[1761909523090,0.002,3835.2,3835.1,0.94220001]
[1761909523501,0.002,3835.2,3835.1,1.21905335]
[1761909523709,0.002,3835.2,3835.1,0.94220001]
[1761909524636,0.002,3835.2,3835.1,0.96827494]
[1761909524804,0.002,3835.2,3835.1,2.79352069]
[1761909525409,0.002,3835.2,3835.1,0.96827494]
[1761909525609,0.002,3835.2,3835.1,2.79352069]
[1761909527934,0.002,3835.2,3835.1,2.92312069]
[1761909528111,0.002,3835.2,3835.1,4.09386338]
[1761909528440,0.002,3835.2,3835.1,5.49354338]
[1761909528740,0.002,3835.2,3835.1,5.46746845]
[1761909530608,0.002,3835.2,3835.1,10.37166164]
[1761909531139,0.002,3835.2,3835.1,5.46746845]
[1761909532248,0.002,3835.2,3835.1,10.37166164]
[1761909533310,0.002,3835.2,3835.1,5.05356845]
[1761909533638,0.002,3835.2,3835.1,4.29672576]
[1761909535309,0.002,3835.2,3835.1,4.40120736]
[1761909536115,0.002,3835.2,3835.1,2.57596161]
[1761909536323,0.002,3835.2,3835.1,4.40120736]
[1761909536725,0.002,3835.2,3835.1,1.17628161]
[1761909537041,0.002,3835.2,3835.1,3.97474134]
[1761909537849,0.0012,3835.2,3835.1,3.97474134]
[1761909538429,0.0012,3835.2,3835.1,2.14949559]
[1761909538629,0.0012,3835.2,3835.1,3.00152736]
[1761909540446,0.0012,3835.2,3835.1,1.17628161]
[1761909541016,0.4868,3835.2,3835.1,0.23508161]
[1761909541247,0.951,3835.2,3835.1,0.10548161]
[1761909541434,0.4868,3835.2,3835.1,0.00100001]
[1761909541856,0.0012,3835.2,3835.1,0.00100001]
[1761909542360,0.0012,3835.2,3835.1,0.41490001]
[1761909542858,0.0012,3835.2,3835.1,0.44097494]
[1761909545726,0.0012,3835.2,3835.1,8.25854662]
[1761909545925,0.0012,3835.2,3835.1,8.23247169]
[1761909546440,0.0012,3835.2,3835.1,1.08913275]
[1761909547867,0.0012,3835.2,3835.1,2.9143785]
[1761909548176,0.0012,3835.2,3835.1,9.65822662]
[1761909548334,0.0012,3835.2,3835.1,9.63215169]
[1761909550326,0.0012,3835.2,3835.1,9.76175169]
[1761909551667,0.0012,3835.2,3835.1,14.77041939]
[1761909551841,0.0012,3835.2,3835.1,9.8662262]
[1761909555549,0.0012,3835.2,3835.1,4.54813301]
[1761909555945,0.0012,3835.2,3835.1,4.57420794]
[1761909556160,0.0012,3835.2,3835.1,4.54813301]
[1761909558196,0.0012,3835.2,3835.1,9.89230113]
[1761909558509,0.002,3836.1,3835.6,0.4139]
[1761909558646,0.002,3836.1,3835.1,7.61868445]
[1761909558647,0.002,3836.1,3836.0,7.1429107]
[1761909558851,0.002,3836.1,3836.0,8.6721907]
[1761909559078,0.002,3836.1,3836.0,9.0860907]
[1761909559255,0.002,3836.1,3836.0,9.19053493]
[1761909559463,0.002,3836.1,3836.0,10.93966334]
[1761909563069,0.002,3836.5,3836.4,1.82462725]
[1761909563275,0.002,3836.5,3836.4,9.58100627]
[1761909563469,0.002,3836.5,3836.4,10.09844017]
[1761909563670,0.002,3836.5,3836.4,11.30573404]
[1761909567018,0.0012,3837.3,3837.2,1.82424684]
[1761909567225,0.0012,3837.3,3837.2,9.17511642]
[1761909567387,0.0012,3837.3,3837.2,9.56295576]
[1761909567573,0.0012,3837.3,3837.2,9.69255576]
[1761909567924,0.0012,3837.3,3837.2,10.94865905]
[1761909569943,0.0012,3837.3,3837.2,11.35416305]
[1761909576861,0.001,3837.9,3837.6,1.8240567]
[1761909577062,0.001,3837.9,3837.6,7.77524357]
[1761909577363,0.001,3837.9,3837.6,9.69236562]
[1761909577575,0.001,3837.9,3837.6,11.3539203]
[1761909577940,0.001,3837.9,3837.6,10.9400203]
[1761909580028,0.001,3837.9,3837.6,5.42879138]
[1761909580225,0.001,3837.9,3837.6,10.9400203]
[1761909583566,0.001,3837.9,3837.6,10.83561887]
[1761909586064,0.001,3837.9,3837.6,11.24951887]
[1761909586660,0.001,3837.9,3837.6,10.83561887]
[1761909588266,0.0102,3837.7,3837.6,10.83561887]
[1761909590750,0.0102,3837.7,3837.6,11.24951887]
[1761909590967,0.0102,3837.7,3837.6,10.83561887]
[1761909591941,0.0102,3837.7,3837.6,10.42171887]
[1761909592372,0.0102,3837.7,3837.6,10.83561887]
[1761909593664,0.4659,3837.7,3837.6,4.50498595]
[1761909593856,0.9231,3837.7,3837.6,3.3533367]
[1761909594379,0.4659,3837.7,3837.6,3.3533367]
[1761909598655,0.0102,3837.7,3837.6,3.3533367]
[1761909598851,0.0102,3837.7,3837.6,3.79329465]
[1761909599181,0.0102,3837.7,3837.6,5.32015969]
[1761909599403,0.0102,3837.7,3837.6,4.88020174]
[1761909599607,0.0102,3837.7,3837.6,4.90625969]
[1761909601616,0.0102,3837.7,3837.6,5.32015969]
[1761909601811,0.0102,3837.7,3837.6,4.88020174]
[1761909602026,0.4659,3837.7,3837.6,4.49235969]
[1761909602418,0.0102,3837.7,3837.6,4.90625969]
[1761909602616,0.0102,3837.7,3837.6,5.31176369]
[1761909602927,0.0102,3837.7,3837.6,5.28570574]
[1761909603322,0.0102,3837.7,3837.6,5.69960574]
[1761909604035,0.002,3838.1,3837.9,0.405504]
[1761909604236,0.002,3838.1,3838.0,8.18055474]
[1761909604527,0.002,3838.1,3838.0,9.68377951]
[1761909604954,0.001,3838.3,3838.1,4.45680307]
[1761909605101,0.001,3838.3,3838.2,4.85368702]
[1761909605304,0.001,3838.3,3838.2,4.98328702]
[1761909606545,0.001,3838.3,3838.2,4.95723315]
[1761909606703,0.4567,3838.3,3838.2,4.54333315]
[1761909607204,0.9139,3838.3,3838.2,4.54333315]
[1761909607819,0.001,3838.3,3838.2,4.54333315]
[1761909608014,0.001,3838.3,3838.2,4.56938702]
[1761909608631,0.001,3838.3,3838.2,4.98328702]
[1761909610863,0.001,3838.3,3838.2,5.80269102]
[1761909611051,0.001,3838.3,3838.2,5.77663715]
[1761909611367,0.001,3838.3,3838.2,4.94883715]
[1761909611873,0.001,3838.3,3838.2,5.80269102]
[1761909612063,0.001,3838.3,3838.2,5.77663715]
[1761909612844,0.001,3838.3,3838.2,5.36273715]
[1761909613363,0.001,3839.0,3838.2,5.36273715]
[1761909613364,0.00020001,3839.1,3839.0,2.6427955]
[1761909613583,0.00020001,3839.1,3839.0,10.16634432]
[1761909613882,0.00020001,3839.1,3839.0,10.26989587]
[1761909614431,0.00020001,3839.1,3839.0,9.85599587]
[1761909614659,0.00020001,3839.1,3839.0,10.26989587]
[1761909616634,0.00020001,3839.1,3839.0,10.68379587]
[1761909616884,0.0002,3839.4,3839.0,10.68379587]
[1761909616885,0.0002,3839.4,3839.0,8.44650437]
[1761909617052,0.4572,3840.6,3839.7,8.15369201]
[1761909617374,0.4572,3840.6,3839.8,4.06813863]
[1761909617544,0.01,3840.7,3839.8,4.06813863]
[1761909617545,0.4511,3840.4,3839.8,4.06813863]
[1761909617966,0.01,3840.7,3839.8,4.06813863]
[1761909618196,0.4511,3840.5,3839.8,4.06813863]
[1761909618391,0.01,3840.7,3839.8,4.04209561]
[1761909618392,0.4511,3840.3,3839.8,4.04209561]
[1761909618696,0.4865,3839.9,3839.8,3.62819561]
[1761909620998,0.001,3839.9,3839.8,3.62819561]
[1761909621303,0.001,3839.9,3839.8,14.50257601]
[1761909621800,0.001,3839.9,3839.8,14.91647601]
[1761909623669,0.001,3839.9,3839.8,14.50257601]
[1761909625179,0.01,3840.7,3840.6,1.82263188]
[1761909625374,0.01,3840.7,3840.6,8.13741549]
[1761909625578,0.4795,3840.7,3840.6,8.1113779]
[1761909625779,0.4795,3840.7,3840.6,9.10478576]
[1761909625780,0.9453,3840.7,3840.6,9.10478576]
[1761909626986,0.9453,3840.7,3840.6,9.23438576]
[1761909630171,0.9463,3840.7,3840.6,9.23438576]
[1761909630413,0.9463,3840.7,3840.6,7.83470576]
[1761909631296,0.9463,3840.7,3840.6,9.23438576]
[1761909632006,0.9463,3840.7,3840.6,2.52268786]
[1761909632208,2.76888442,3840.7,3840.6,0.1296]
[1761909632510,0.9463,3840.7,3840.6,0.1296]
[1761909632675,2.76888442,3840.7,3840.6,0.1296]
[1761909633026,0.9463,3840.7,3840.3,0.1296]
[1761909633310,0.48941134,3840.6,3840.3,0.1296]
[1761909633510,0.4695,3840.4,3840.3,0.1296]
[1761909633995,0.9353,3840.4,3840.3,0.1296]
[1761909638628,0.9345,3840.4,3840.3,0.1296]
[1761909648143,0.9355,3840.4,3840.3,0.1296]
[1761909650038,0.4697,3840.4,3840.3,5.01866602]
[1761909650229,0.9268,3840.4,3840.3,4.88906602]
[1761909650712,0.9268,3840.4,3839.9,1.40168]
[1761909650912,0.4755,3840.0,3839.9,0.002]
[1761909651112,0.4755,3840.0,3839.9,6.29074602]
[1761909651324,0.9326,3840.0,3839.9,6.92002062]
[1761909654933,0.9326,3840.0,3839.9,8.74298475]
[1761909656153,0.4755,3840.0,3839.9,8.74298475]
[1761909656350,0.4755,3840.0,3839.9,6.92002062]
[1761909656559,0.4755,3840.0,3839.9,8.74298475]
[1761909657223,0.9326,3840.0,3839.9,8.74298475]
[1761909657850,0.9326,3840.0,3839.9,6.92002062]
[1761909658055,0.9326,3840.0,3839.9,8.74298475]
[1761909658624,0.9326,3840.0,3839.9,6.92002062]
[1761909659053,0.9326,3840.0,3839.9,0.002]
[1761909659420,2.75551666,3840.0,3839.9,0.002]
[1761909660033,0.9326,3840.0,3839.9,0.002]
[1761909660233,0.95621134,3840.0,3839.9,0.002]
[1761909660661,2.779128,3840.0,3839.9,0.002]
[1761909662159,0.95621134,3840.0,3839.9,0.002]
[1761909662854,2.779128,3840.0,3839.9,0.002]
[1761909663623,0.95621134,3840.0,3839.9,0.002]
[1761909663855,0.95541134,3840.0,3839.9,0.002]
[1761909664231,0.9318,3840.0,3839.9,0.002]
[1761909664976,0.4747,3840.0,3839.9,0.02804234]
[1761909665172,0.4747,3840.0,3839.9,0.64955318]
[1761909665330,0.4747,3840.0,3839.9,0.62351084]
[1761909665534,0.9318,3840.0,3839.9,0.62351084]
[1761909666462,0.4747,3840.0,3839.9,2.47251731]
[1761909666763,0.4747,3840.0,3839.9,0.64955318]
[1761909667337,0.4571,3840.2,3839.9,0.64955318]
[1761909667535,0.4571,3840.2,3840.0,0.55406192]
[1761909668058,0.4755,3840.1,3840.0,0.55406192]
[1761909668633,0.9326,3840.1,3840.0,0.55406192]